[Event "Groningen Festival 2019-A"]
[Site "Groningen"]
[Date "2019.12.21"]
[Round "1.2"]
[White "Woong, Zhi Wei William"]
[Black "Krasenkow, Michal"]
[Result "*"]
[ECO "E90"]
[WhiteElo "2222"]
[BlackElo "2611"]
[Annotator "RC"]
[PlyCount "51"]
[EventDate "2019.12.15"]
[EventType "swiss"]
[EventCountry "NED"]
[SourceTitle "playchess.com"]
[Source "ChessBase"]
[SourceQuality "1"]
[TimeControl "40/5400+30:1800+30"]

1. Nf3 {[%emt 0:01:13]} Nf6 {[%emt 0:00:00]} 2. c4 {[%emt 0:00:30]} g6 {[%emt 0:00:00]} 3. Nc3 {[%emt 0:00:51]} Bg7 {[%emt 0:00:10]} 4. e4 {[%emt 0:00:50]} d6 {[%emt 0:00:15]} 5. d4 {[%emt 0:00:39]} O-O {[%emt 0:00:19]} 6. h3 {[%emt 0:00:59]} e5 {[%emt 0:05:27]} 7. d5 {[%emt 0:00:17]} Nbd7 {[%emt 0:01:44]} 8. Be3 {[%emt 0:01:36]} Nc5 {[%emt 0:02:37]} 9. Nd2 {[%emt 0:01:14]} a5 {[%emt 0:01:20]} 10. g4 {[%emt 0:01:46]} c6 {[%emt 0:04:32]} 11. Qc2 {[%emt 0:02:21]} cxd5 {[%emt 0:06:32]} 12. cxd5 {[%emt 0:01:03]} Bd7 {[%emt 0:02:29]} 13. Bxc5 {[%emt 0:04:23]} dxc5 {[%emt 0:00:18]} 14. Bb5 {[%emt 0:00:23]} Bxb5 {[%emt 0:18:59]} 15. Nxb5 {[%emt 0:00:24]} Nd7 {[%emt 0:01:57]} 16. O-O-O {[%emt 0:05:17]} Nb6 {[%emt 0:07:22]} 17. Nc4 {[%emt 0:05:18]} f5 {[%emt 0:07:26]} 18. gxf5 {[%emt 0:02:30]} gxf5 {[%emt 0:00:17]} 19. Rhg1 {[%emt 0:02:00]} Nxc4 {[%emt 0:00:54]} 20. Qxc4 {[%emt 0:00:34]} Kh8 {[%emt 0:05:23]} 21. d6 {[%emt 0:01:52]} Qd7 {[%emt 0:06:31]} 22. Nc7 {[%emt 0:02:53]} Rac8 {[%emt 0:01:06]} 23. Ne6 {[%emt 0:00:46]} Bh6+ {[%emt 0:01:23]} 24. Kb1 {[%emt 0:00:13]} Rf6 {[%emt 0:03:22]} 25. exf5 {[%emt 0:00:12]} b5 {[%emt 0:06:06]} 26. Qh4 {[%emt 0:00:37]} *

[Event "Groningen Festival 2019-A"]
[Site "Groningen"]
[Date "2019.12.21"]
[Round "1.3"]
[White "Sargsyan, Shant"]
[Black "Grutter, Tim"]
[Result "*"]
[ECO "C30"]
[WhiteElo "2601"]
[BlackElo "2214"]
[Annotator "RC"]
[PlyCount "29"]
[EventDate "2019.12.15"]
[EventType "swiss"]
[EventCountry "NED"]
[SourceTitle "playchess.com"]
[Source "ChessBase"]
[SourceQuality "1"]
[TimeControl "40/5400+30:1800+30"]

1. e4 {[%emt 0:00:00]} d6 {[%emt 0:00:00]} 2. Nc3 {[%emt 0:00:00]} e5 {[%emt 0:00:35]} 3. f4 {[%emt 0:00:12]} exf4 {[%emt 0:00:05]} 4. Nf3 {[%emt 0:00:18]} g5 {[%emt 0:00:23]} 5. h3 {[%emt 0:07:47]} Bg7 {[%emt 0:02:11]} 6. d4 {[%emt 0:10:01]} h6 {[%emt 0:00:16]} 7. Bc4 {[%emt 0:05:08]} Ne7 {[%emt 0:00:21]} 8. O-O {[%emt 0:01:52]} O-O {[%emt 0:02:59]} 9. Re1 {[%emt 0:15:56]} Nbc6 {[%emt 0:11:57]} 10. a3 {[%emt 0:09:19]} Ng6 {[%emt 0:09:27]} 11. Nd5 {[%emt 0:02:36]} Be6 {[%emt 0:07:37]} 12. Qd3 {[%emt 0:04:58]} Nce7 {[%emt 0:04:51]} 13. Bd2 {[%emt 0:08:08]} Nxd5 {[%emt 0:07:47]} 14. exd5 {[%emt 0:05:59]} Bd7 {[%emt 0:00:05]} 15. c3 {[%emt 0:03:07]} *

[Event "Groningen Festival 2019-A"]
[Site "Groningen"]
[Date "2019.12.21"]
[Round "1.3"]
[White "Woong, Zhi Wei William"]
[Black "Krasenkow, Michal"]
[Result "0-1"]
[ECO "C30"]
[WhiteElo "2222"]
[BlackElo "2611"]
[Annotator "RC"]
[PlyCount "42"]
[EventDate "2019.12.15"]
[EventType "swiss"]
[EventCountry "NED"]
[SourceTitle "playchess.com"]
[Source "ChessBase"]
[SourceQuality "1"]
[TimeControl "40/5400+30:1800+30"]

1. e4 {[%emt 0:00:00]} d6 {[%emt 0:00:00]} 2. Nc3 {[%emt 0:00:00]} e5 {[%emt 0:00:35]} 3. f4 {[%emt 0:00:12]} exf4 {[%emt 0:00:05]} 4. Nf3 {[%emt 0:00:18]} g5 {[%emt 0:00:23]} 5. h3 {[%emt 0:07:47]} Bg7 {[%emt 0:02:11]} 6. d4 {[%emt 0:10:01]} h6 {[%emt 0:00:16]} 7. Bc4 {[%emt 0:05:08]} Ne7 {[%emt 0:00:21]} 8. O-O {[%emt 0:01:52]} O-O {[%emt 0:02:59]} 9. Re1 {[%emt 0:15:56]} Nbc6 {[%emt 0:11:57]} 10. a3 {[%emt 0:09:19]} Ng6 {[%emt 0:09:27]} 11. Nd5 {[%emt 0:02:41]} Be6 {[%emt 0:07:37]} 12. Qd3 {[%emt 0:04:59]} Nce7 {[%emt 0:04:51]} 13. Bd2 {[%emt 0:08:08]} Nxd5 {[%emt 0:07:47]} 14. exd5 {[%emt 0:05:59]} Bd7 {[%emt 0:00:05]} 15. c3 {[%emt 0:03:07]} h5 {[%emt 0:09:56]} 16. Qf1 {[%emt 0:10:38]} g4 {[%emt 0:01:00]} 17. hxg4 {[%emt 0:00:56]} hxg4 {[%emt 0:00:06]} 18. Nh2 {[%emt 0:00:10]} Qh4 {[%emt 0:00:08]} 19. Bd3 {[%emt 0:06:58]} f3 {[%emt 0:11:36]} 20. Re4 {[%emt 0:01:07]} f2+ {[%emt 0:02:12]} 21. Kh1 {[%emt 0:00:43]} f5 {[%emt 0:00:45]} 0-1

[Event "Groningen Festival 2019-A"]
[Site "Groningen"]
[Date "2019.12.21"]
[Round "1.10"]
[White "Krasenkova, Ilena"]
[Black "Vrolijk, Liam"]
[Result "0-1"]
[ECO "D88"]
[WhiteElo "2174"]
[BlackElo "2467"]
[Annotator "ChessBase"]
[PlyCount "123"]
[EventDate "2019.12.15"]
[EventType "swiss"]
[EventCountry "NED"]
[SourceTitle "playchess.com"]
[Source "ChessBase"]
[SourceQuality "1"]
[TimeControl "40/5400+30:1800+30"]

1. d4 {[%emt 0:00:00]} Nf6 {[%emt 0:00:01]} 2. c4 {[%emt 0:00:00]} g6 {[%emt 0:01:15]} 3. Nc3 {[%emt 0:00:00]} d5 {[%emt 0:00:06]} 4. cxd5 {[%emt 0:00:01]} Nxd5 {[%emt 0:00:09]} 5. e4 {[%emt 0:00:04]} Nxc3 {[%emt 0:00:08]} 6. bxc3 {[%emt 0:00:04]} Bg7 {[%emt 0:00:08]} 7. Bc4 {[%emt 0:00:38]} c5 {[%emt 0:00:47]} 8. Ne2 {[%emt 0:00:18]} Nc6 {[%emt 0:01:06]} 9. Be3 {[%emt 0:00:11]} O-O {[%emt 0:00:34]} 10. O-O {[%emt 0:00:05]} b6 {[%emt 0:03:19]} 11. Rb1 {[%emt 0:07:39]} cxd4 {[%emt 0:13:50]} 12. cxd4 {[%emt 0:00:05]} e6 {[%emt 0:00:33]} 13. Qd2 {[%emt 0:04:34]} Bb7 {[%emt 0:01:44]} 14. f3 {[%emt 0:01:05]} Rc8 {[%emt 0:01:18]} 15. Rfc1 {[%emt 0:00:37]} Qd6 {[%emt 0:06:47]} 16. e5 {[%emt 0:08:42]} Qe7 {[%emt 0:08:53]} 17. Bb5 {[%emt 0:13:33]} Na5 {[%emt 0:14:22]} 18. Rxc8 {[%emt 0:22:03]} Rxc8 {[%emt 0:01:45]} 19. Rc1 {[%emt 0:00:20]} Rxc1+ {[%emt 0:07:39]} 20. Qxc1 {[%emt 0:00:22]} f6 {[%emt 0:01:06]} 21. Qc3 {[%emt 0:11:38]} a6 {[%emt 0:03:26]} 22. Bd3 {[%emt 0:02:48]} fxe5 {[%emt 0:04:57]} 23. dxe5 {[%emt 0:00:07]} Nc6 {[%emt 0:00:16]} 24. f4 {[%emt 0:04:22]} b5 {[%emt 0:00:53]} 25. Ng3 {[%emt 0:07:04]} Qb4 {[%emt 0:02:25]} 26. Bd2 {[%emt 0:05:34]} Qxc3 {[%emt 0:01:59]} 27. Bxc3 {[%emt 0:00:05]} g5 {[%emt 0:01:09]} 28. fxg5 {[%emt 0:00:32]} Nxe5 {[%emt 0:02:05]} 29. Be4 {[%emt 0:03:08]} Bxe4 {[%emt 0:01:06]} 30. Nxe4 {[%emt 0:00:04]} Nd3 {[%emt 0:00:07]} 31. Bd2 {[%emt 0:02:38]} b4 {[%emt 0:02:10]} 32. Kf1 {[%emt 0:00:06]} a5 {[%emt 0:00:05]} 33. Ke2 {[%emt 0:00:17]} Ne5 {[%emt 0:00:07]} 34. Nc5 {[%emt 0:00:41]} Kf7 {[%emt 0:00:31]} 35. h4 {[%emt 0:01:33]} Bf8 {[%emt 0:00:58]} 36. Nd3 {[%emt 0:01:45]} Nc6 {[%emt 0:00:33]} 37. g4 {[%emt 0:00:37]} a4 {[%emt 0:02:21]} 38. Ke3 {[%emt 0:01:53]} a3 {[%emt 0:03:07]} 39. Nc1 {[%emt 0:00:19]} Ne5 {[%emt 0:00:42]} 40. Ke4 {[%emt 0:02:19]} Nxg4 {[%emt 0:02:48]} 41. Kf4 {[%emt 0:31:57]} Nf6 {[%emt 0:30:24]} 42. Ke5 {[%emt 0:00:00]} Nd5 {[%emt 0:00:00]} 43. h5 {[%emt 0:00:00]} Bg7+ {[%emt 0:00:00]} 44. Ke4 {[%emt 0:00:00]} Bc3 {[%emt 0:00:00]} 45. Kd3 {[%emt 0:00:00]} Bxd2 {[%emt 0:00:00]} 46. Kxd2 {[%emt 0:00:00]} Nf4 {[%emt 0:00:00]} 47. g6+ {[%emt 0:00:00]} hxg6 {[%emt 0:00:00]} 48. hxg6+ {[%emt 0:00:00]} Kxg6 {[%emt 0:00:00]} 49. Kc2 {[%emt 0:00:00]} Kf5 {[%emt 0:00:00]} 50. Kb3 {[%emt 0:00:00]} Ke4 {[%emt 0:00:00]} 51. Kc4 {[%emt 0:00:00]} e5 {[%emt 0:00:00]} 52. Nb3 {[%emt 0:00:00]} Nd3 {[%emt 0:00:00]} 53. Na5 {[%emt 0:02:21]} Ke3 {[%emt 0:00:00]} 54. Nb3 {[%emt 0:01:15]} Ke2 {[%emt 0:06:37]} 55. Kd5 {[%emt 0:00:19]} Kd1 {[%emt 0:00:00]} 56. Kc4 {[%emt 0:01:39]} Kc2 {[%emt 0:00:00]} 57. Na5 {[%emt 0:00:56]} e4 {[%emt 0:00:00]} 58. Kd4 {[%emt 0:00:09]} Nc1 {[%emt 0:00:08]} 59. Kxe4 {[%emt 0:02:16]} b3 {[%emt 0:01:22]} 60. Nc4 {[%emt 0:00:05]} bxa2 {[%emt 0:00:00]} 61. Nxa3+ {[%emt 0:01:08]} Kb3 {[%emt 0:00:00]} 62. Kd4 {[%emt 0:00:41]} 0-1

[Event "Groningen Festival 2019-A"]
[Site "Groningen"]
[Date "2019.12.21"]
[Round "1.11"]
[White "Ulybin, Mikhail"]
[Black "Tabak, Stefan"]
[Result "1-0"]
[ECO "A86"]
[WhiteElo "2453"]
[BlackElo "2166"]
[Annotator "ChessBase"]
[PlyCount "105"]
[EventDate "2019.12.15"]
[EventType "swiss"]
[EventCountry "NED"]
[SourceTitle "playchess.com"]
[Source "ChessBase"]
[SourceQuality "1"]
[TimeControl "40/5400+30:1800+30"]

1. c4 {[%emt 0:09:34]} f5 {[%emt 0:00:20]} 2. d4 {[%emt 0:01:28]} Nf6 {[%emt 0:00:09]} 3. g3 {[%emt 0:02:39]} g6 {[%emt 0:00:42]} 4. Bg2 {[%emt 0:01:11]} Bg7 {[%emt 0:00:09]} 5. Nc3 {[%emt 0:01:29]} d6 {[%emt 0:00:26]} 6. d5 {[%emt 0:02:48]} O-O {[%emt 0:00:35]} 7. Nh3 {[%emt 0:01:31]} e5 {[%emt 0:03:57]} 8. dxe6 {[%emt 0:00:56]} c6 {[%emt 0:00:14]} 9. Ng5 {[%emt 0:38:52]} Qe7 {[%emt 0:07:01]} 10. Bf4 {[%emt 0:06:29]} Ne8 {[%emt 0:03:09]} 11. Nf7 {[%emt 0:03:05]} Bxe6 {[%emt 0:02:29]} 12. Nxd6 {[%emt 0:00:53]} Na6 {[%emt 0:21:10]} 13. Nxe8 {[%emt 0:03:49]} Rfxe8 {[%emt 0:00:32]} 14. Bd6 {[%emt 0:03:47]} Qf7 {[%emt 0:16:22]} 15. c5 {[%emt 0:00:57]} Rad8 {[%emt 0:03:13]} 16. Qa4 {[%emt 0:08:10]} Bxc3+ {[%emt 0:01:37]} 17. bxc3 {[%emt 0:00:12]} Bd5 {[%emt 0:00:07]} 18. Bxd5 {[%emt 0:02:11]} Qxd5 {[%emt 0:01:52]} 19. Qb3 {[%emt 0:01:48]} b6 {[%emt 0:01:56]} 20. Rd1 {[%emt 0:04:08]} Qxb3 {[%emt 0:01:04]} 21. axb3 {[%emt 0:00:09]} Nxc5 {[%emt 0:00:34]} 22. Bxc5 {[%emt 0:00:38]} bxc5 {[%emt 0:00:12]} 23. e3 {[%emt 0:03:17]} Kf7 {[%emt 0:01:19]} 24. Ke2 {[%emt 0:00:27]} Ke6 {[%emt 0:00:25]} 25. Ra1 {[%emt 0:00:52]} Rb8 {[%emt 0:05:38]} 26. Rxa7 {[%emt 0:00:54]} Rxb3 {[%emt 0:00:06]} 27. Rxh7 {[%emt 0:00:30]} Rxc3 {[%emt 0:00:54]} 28. Rc7 {[%emt 0:00:37]} Kd6 {[%emt 0:01:25]} 29. Rg7 {[%emt 0:00:09]} Rc2+ {[%emt 0:03:58]} 30. Kf3 {[%emt 0:00:09]} Re6 {[%emt 0:03:27]} 31. Rd1+ {[%emt 0:00:15]} Ke5 {[%emt 0:00:05]} 32. h4 {[%emt 0:00:21]} c4 {[%emt 0:01:45]} 33. Ra7 {[%emt 0:01:20]} Rd6 {[%emt 0:00:43]} 34. Re7+ {[%emt 0:00:34]} Re6 {[%emt 0:00:11]} 35. Ra7 {[%emt 0:00:38]} Rd6 {[%emt 0:00:04]} 36. Re7+ {[%emt 0:00:30]} Re6 {[%emt 0:00:06]} 37. Red7 {[%emt 0:00:27]} Kf6 {[%emt 0:02:10]} 38. Ra7 {[%emt 0:00:37]} Ke5 {[%emt 0:01:58]} 39. Ra5+ {[%emt 0:00:00]} Kf6 {[%emt 0:00:09]} 40. Rc5 {[%emt 0:00:18]} Re5 {[%emt 0:15:09]} 41. Rd6+ {[%emt 0:31:05]} Re6 {[%emt 0:30:08]} 42. Rd4 {[%emt 0:00:36]} c3 {[%emt 0:01:13]} 43. Rdc4 {[%emt 0:00:00]} Rd6 {[%emt 0:00:00]} 44. Rxc3 {[%emt 0:00:00]} Rxc3 {[%emt 0:00:00]} 45. Rxc3 {[%emt 0:00:00]} Re6 {[%emt 0:00:00]} 46. Rc4 {[%emt 0:00:00]} Rd6 {[%emt 0:00:00]} 47. Kf4 {[%emt 0:00:00]} Re6 {[%emt 0:00:00]} 48. f3 {[%emt 0:00:00]} Kg7 {[%emt 0:00:00]} 49. Rd4 {[%emt 0:00:00]} Kf6 {[%emt 0:00:00]} 50. Rd7 {[%emt 0:00:00]} g5+ {[%emt 0:00:00]} 51. hxg5+ {[%emt 0:00:00]} Kg6 {[%emt 0:00:00]} 52. Rc7 {[%emt 0:00:00]} Rd6 {[%emt 0:00:00]} 53. g4 {[%emt 0:00:00]} 1-0

[Event "Groningen Festival 2019-A"]
[Site "Groningen"]
[Date "2019.12.22"]
[Round "2.4"]
[White "Kumar, Nikhil"]
[Black "Fier, Alexandr"]
[Result "0-1"]
[ECO "D93"]
[WhiteElo "2315"]
[BlackElo "2528"]
[Annotator "ChessBase"]
[PlyCount "128"]
[EventDate "2019.12.15"]
[EventType "swiss"]
[EventCountry "NED"]
[SourceTitle "playchess.com"]
[Source "ChessBase"]
[SourceQuality "1"]
[TimeControl "40/5400+30:1800+30"]

1. d4 {[%emt 0:00:00]} Nf6 {[%emt 0:00:00]} 2. c4 {[%emt 0:00:00]} g6 {[%emt 0:00:00]} 3. Nc3 {[%emt 0:00:00]} d5 {[%emt 0:00:00]} 4. Bf4 {[%emt 0:00:11]} Bg7 {[%emt 0:00:00]} 5. e3 {[%emt 0:00:09]} c5 {[%emt 0:00:00]} 6. dxc5 {[%emt 0:00:08]} Qa5 {[%emt 0:00:00]} 7. Rc1 {[%emt 0:00:23]} O-O {[%emt 0:00:00]} 8. Nf3 {[%emt 0:01:43]} Nbd7 {[%emt 0:03:41]} 9. cxd5 {[%emt 0:11:23]} Ne4 {[%emt 0:00:05]} 10. Be2 {[%emt 0:04:08]} Nxc3 {[%emt 0:00:15]} 11. bxc3 {[%emt 0:04:18]} Bxc3+ {[%emt 0:00:12]} 12. Kf1 {[%emt 0:00:10]} Nxc5 {[%emt 0:00:04]} 13. Ne5 {[%emt 0:15:20]} Ne4 {[%emt 0:09:49]} 14. Nc4 {[%emt 0:13:39]} Qxa2 {[%emt 0:02:19]} 15. Rc2 {[%emt 0:06:34]} Qb3 {[%emt 0:02:34]} 16. f3 {[%emt 0:09:32]} Nc5 {[%emt 0:08:10]} 17. Qc1 {[%emt 0:04:50]} Na4 {[%emt 0:00:48]} 18. Nd2 {[%emt 0:02:10]} Qb4 {[%emt 0:09:54]} 19. Ne4 {[%emt 0:02:19]} Bg7 {[%emt 0:00:06]} 20. Rc4 {[%emt 0:01:07]} Qa5 {[%emt 0:01:05]} 21. Qa3 {[%emt 0:04:11]} Bd7 {[%emt 0:02:04]} 22. Qxe7 {[%emt 0:03:38]} Nb6 {[%emt 0:04:36]} 23. Rc1 {[%emt 0:05:15]} Bb5 {[%emt 0:03:40]} 24. Qc5 {[%emt 0:06:09]} Rac8 {[%emt 0:01:54]} 25. Bc7 {[%emt 0:00:27]} Bxe2+ {[%emt 0:06:01]} 26. Kxe2 {[%emt 0:00:02]} Qxc5 {[%emt 0:00:08]} 27. Rxc5 {[%emt 0:00:11]} Nxd5 {[%emt 0:00:02]} 28. Rhc1 {[%emt 0:02:00]} Nxc7 {[%emt 0:02:21]} 29. Rxc7 {[%emt 0:00:21]} Rxc7 {[%emt 0:00:02]} 30. Rxc7 {[%emt 0:00:03]} Rb8 {[%emt 0:00:04]} 31. Nc5 {[%emt 0:01:10]} Be5 {[%emt 0:02:31]} 32. Rxb7 {[%emt 0:00:19]} Rxb7 {[%emt 0:00:04]} 33. Nxb7 {[%emt 0:00:03]} Bxh2 {[%emt 0:00:04]} 34. f4 {[%emt 0:00:22]} g5 {[%emt 0:00:27]} 35. Kf3 {[%emt 0:04:11]} gxf4 {[%emt 0:00:03]} 36. exf4 {[%emt 0:00:01]} Bg1 {[%emt 0:00:05]} 37. Na5 {[%emt 0:00:40]} Bb6 {[%emt 0:00:55]} 38. Nc4 {[%emt 0:00:40]} Bc7 {[%emt 0:00:03]} 39. Ke4 {[%emt 0:01:04]} a5 {[%emt 0:00:05]} 40. Nb2 {[%emt 0:00:04]} Kg7 {[%emt 0:00:24]} 41. g4 {[%emt 0:04:55]} Kg6 {[%emt 0:00:40]} 42. Na4 {[%emt 0:00:39]} h6 {[%emt 0:01:45]} 43. Nc3 {[%emt 0:00:38]} Bd6 {[%emt 0:00:05]} 44. Na4 {[%emt 0:00:55]} Ba3 {[%emt 0:00:03]} 45. Nb6 {[%emt 0:02:46]} Bb4 {[%emt 0:00:06]} 46. Nd5 {[%emt 0:00:52]} Bd2 {[%emt 0:00:31]} 47. Nb6 {[%emt 0:00:29]} Kf6 {[%emt 0:00:06]} 48. Nc4 {[%emt 0:04:08]} Be1 {[%emt 0:00:56]} 49. Nb2 {[%emt 0:04:07]} Ke6 {[%emt 0:00:17]} 50. Nd3 {[%emt 0:00:50]} Bc3 {[%emt 0:00:39]} 51. Nc5+ {[%emt 0:00:55]} Kd6 {[%emt 0:00:06]} 52. Nb7+ {[%emt 0:01:20]} Kc7 {[%emt 0:00:22]} 53. Nc5 {[%emt 0:05:26]} Kc6 {[%emt 0:00:09]} 54. Nd3 {[%emt 0:04:45]} a4 {[%emt 0:00:14]} 55. Nc1 {[%emt 0:00:08]} a3 {[%emt 0:00:06]} 56. Kd3 {[%emt 0:00:37]} Bb2 {[%emt 0:00:08]} 57. Na2 {[%emt 0:00:09]} Kc5 {[%emt 0:00:19]} 58. Kc2 {[%emt 0:00:29]} Kc4 {[%emt 0:01:02]} 59. Kb1 {[%emt 0:00:52]} Kb3 {[%emt 0:01:06]} 60. g5 {[%emt 0:00:05]} h5 {[%emt 0:00:44]} 61. f5 {[%emt 0:00:04]} h4 {[%emt 0:00:04]} 62. g6 {[%emt 0:00:03]} fxg6 {[%emt 0:01:58]} 63. fxg6 {[%emt 0:00:47]} h3 {[%emt 0:00:05]} 64. Nc1+ {[%emt 0:00:17]} Bxc1 {[%emt 0:00:13]} 0-1

[Event "Groningen Festival 2019-A"]
[Site "Groningen"]
[Date "2019.12.22"]
[Round "2.5"]
[White "Van Foreest, Lucas"]
[Black "Elgersma, Onno"]
[Result "1-0"]
[ECO "E06"]
[WhiteElo "2526"]
[BlackElo "2319"]
[Annotator "ChessBase"]
[PlyCount "79"]
[EventDate "2019.12.15"]
[EventType "swiss"]
[EventCountry "NED"]
[SourceTitle "playchess.com"]
[Source "ChessBase"]
[SourceQuality "1"]
[TimeControl "40/5400+30:1800+30"]

1. d4 {[%emt 0:04:05]} d5 {[%emt 0:00:00]} 2. c4 {[%emt 0:00:17]} e6 {[%emt 0:00:00]} 3. Nf3 {[%emt 0:00:10]} Nf6 {[%emt 0:00:01]} 4. g3 {[%emt 0:00:08]} Be7 {[%emt 0:00:07]} 5. Bg2 {[%emt 0:00:07]} O-O {[%emt 0:00:07]} 6. Nc3 {[%emt 0:00:06]} dxc4 {[%emt 0:04:41]} 7. Ne5 {[%emt 0:00:21]} Nc6 {[%emt 0:08:18]} 8. Bxc6 {[%emt 0:00:09]} bxc6 {[%emt 0:00:05]} 9. Nxc6 {[%emt 0:00:04]} Qe8 {[%emt 0:00:08]} 10. Nxe7+ {[%emt 0:00:07]} Qxe7 {[%emt 0:00:03]} 11. Qa4 {[%emt 0:00:06]} c5 {[%emt 0:00:33]} 12. dxc5 {[%emt 0:00:45]} Qxc5 {[%emt 0:00:13]} 13. Be3 {[%emt 0:00:11]} Qc7 {[%emt 0:03:14]} 14. f3 {[%emt 0:00:26]} Bb7 {[%emt 0:06:11]} 15. Rd1 {[%emt 0:00:10]} Nd5 {[%emt 0:02:48]} 16. Nxd5 {[%emt 0:00:53]} exd5 {[%emt 0:00:23]} 17. Bd4 {[%emt 0:00:34]} Rfe8 {[%emt 0:01:08]} 18. Kf2 {[%emt 0:00:33]} Re6 {[%emt 0:07:38]} 19. Qb4 {[%emt 0:02:05]} Rae8 {[%emt 0:03:18]} 20. Rde1 {[%emt 0:00:37]} f6 {[%emt 0:08:11]} 21. Qd2 {[%emt 0:09:04]} a6 {[%emt 0:03:52]} 22. g4 {[%emt 0:01:14]} Qf7 {[%emt 0:03:53]} 23. Rhg1 {[%emt 0:02:45]} R8e7 {[%emt 0:02:46]} 24. h4 {[%emt 0:05:53]} Qg6 {[%emt 0:11:23]} 25. Rg2 {[%emt 0:02:09]} Bc6 {[%emt 0:04:15]} 26. g5 {[%emt 0:10:25]} f5 {[%emt 0:01:30]} 27. Qf4 {[%emt 0:00:22]} Qh5 {[%emt 0:09:04]} 28. e3 {[%emt 0:01:38]} Bd7 {[%emt 0:00:36]} 29. Rh1 {[%emt 0:02:25]} Re8 {[%emt 0:02:16]} 30. Rc1 {[%emt 0:06:17]} R6e7 {[%emt 0:01:27]} 31. b3 {[%emt 0:03:10]} Be6 {[%emt 0:00:52]} 32. g6 {[%emt 0:05:20]} h6 {[%emt 0:00:40]} 33. Rg3 {[%emt 0:00:36]} Rb7 {[%emt 0:05:08]} 34. Kg2 {[%emt 0:00:51]} a5 {[%emt 0:01:03]} 35. Rc2 {[%emt 0:01:30]} Rc8 {[%emt 0:05:19]} 36. bxc4 {[%emt 0:00:51]} dxc4 {[%emt 0:00:17]} 37. Rb2 {[%emt 0:01:08]} Rxb2+ {[%emt 0:04:10]} 38. Bxb2 {[%emt 0:00:05]} Bd5 {[%emt 0:01:09]} 39. Qe5 {[%emt 0:00:16]} Bxf3+ {[%emt 0:00:48]} 40. Kf2 {[%emt 0:00:09]} 1-0

[Event "Groningen Festival 2019-A"]
[Site "Groningen"]
[Date "2019.12.22"]
[Round "2.7"]
[White "Gleizerov, Evgeny"]
[Black "Sodoma, Jan"]
[Result "1-0"]
[ECO "E04"]
[WhiteElo "2508"]
[BlackElo "2312"]
[Annotator "ChessBase"]
[PlyCount "57"]
[EventDate "2019.12.15"]
[EventType "swiss"]
[EventCountry "NED"]
[SourceTitle "playchess.com"]
[Source "ChessBase"]
[SourceQuality "1"]
[TimeControl "40/5400+30:1800+30"]

1. d4 {[%emt 0:00:00]} Nf6 {[%emt 0:08:38]} 2. c4 {[%emt 0:00:00]} e6 {[%emt 0:00:06]} 3. g3 {[%emt 0:00:00]} d5 {[%emt 0:00:28]} 4. Nf3 {[%emt 0:00:00]} dxc4 {[%emt 0:00:17]} 5. Bg2 {[%emt 0:00:00]} c5 {[%emt 0:00:13]} 6. O-O {[%emt 0:00:00]} Nc6 {[%emt 0:00:14]} 7. Qa4 {[%emt 0:00:00]} Bd7 {[%emt 0:00:35]} 8. Qxc4 {[%emt 0:00:03]} b5 {[%emt 0:00:33]} 9. Qc3 {[%emt 0:00:07]} Qb6 {[%emt 0:13:23]} 10. Be3 {[%emt 0:15:42]} Nd5 {[%emt 0:02:57]} 11. dxc5 {[%emt 0:01:09]} Qa6 {[%emt 0:07:44]} 12. Qd2 {[%emt 0:01:58]} Rc8 {[%emt 0:01:31]} 13. Rc1 {[%emt 0:05:58]} b4 {[%emt 0:04:58]} 14. Nd4 {[%emt 0:05:26]} Ne5 {[%emt 0:07:18]} 15. Bf4 {[%emt 0:24:10]} Ng6 {[%emt 0:04:58]} 16. Bxd5 {[%emt 0:07:38]} exd5 {[%emt 0:00:10]} 17. Qe3+ {[%emt 0:00:31]} Be7 {[%emt 0:01:49]} 18. c6 {[%emt 0:03:48]} Bxc6 {[%emt 0:01:33]} 19. Nf5 {[%emt 0:00:15]} Kf8 {[%emt 0:01:28]} 20. Nxe7 {[%emt 0:00:56]} Nxe7 {[%emt 0:00:03]} 21. Bd6 {[%emt 0:00:22]} Qb7 {[%emt 0:01:02]} 22. Nd2 {[%emt 0:01:09]} h5 {[%emt 0:00:07]} 23. Nb3 {[%emt 0:03:00]} Qd7 {[%emt 0:01:28]} 24. Bxb4 {[%emt 0:00:28]} Rh6 {[%emt 0:00:42]} 25. Nd4 {[%emt 0:01:09]} Re8 {[%emt 0:01:12]} 26. Nxc6 {[%emt 0:03:31]} Rxc6 {[%emt 0:00:16]} 27. Rxc6 {[%emt 0:00:10]} Qxc6 {[%emt 0:00:05]} 28. Rc1 {[%emt 0:02:01]} Qb7 {[%emt 0:00:45]} 29. Bd6 {[%emt 0:00:32]} 1-0

[Event "Groningen Festival 2019-A"]
[Site "Groningen"]
[Date "2019.12.22"]
[Round "2.8"]
[White "Simet, Martin"]
[Black "Beerdsen, Thomas"]
[Result "0-1"]
[ECO "B13"]
[WhiteElo "2257"]
[BlackElo "2482"]
[Annotator "ChessBase"]
[PlyCount "34"]
[EventDate "2019.12.15"]
[EventType "swiss"]
[EventCountry "NED"]
[SourceTitle "playchess.com"]
[Source "ChessBase"]
[SourceQuality "1"]
[TimeControl "40/5400+30:1800+30"]

1. d4 {[%emt 0:00:00]} d5 {[%emt 0:00:00]} 2. Bf4 {[%emt 0:00:00]} c5 {[%emt 0:00:00]} 3. e3 {[%emt 0:00:11]} cxd4 {[%emt 0:00:03]} 4. exd4 {[%emt 0:00:14]} Nc6 {[%emt 0:00:07]} 5. c3 {[%emt 0:02:02]} f6 {[%emt 0:00:06]} 6. Bd3 {[%emt 0:06:57]} e5 {[%emt 0:00:15]} 7. dxe5 {[%emt 0:02:51]} fxe5 {[%emt 0:00:32]} 8. Bg3 {[%emt 0:05:43]} Nf6 {[%emt 0:01:01]} 9. Ne2 {[%emt 0:02:59]} Bc5 {[%emt 0:08:15]} 10. Bb5 {[%emt 0:04:59]} O-O {[%emt 0:01:39]} 11. Nd2 {[%emt 0:11:37]} Ng4 {[%emt 0:04:35]} 12. Qa4 {[%emt 0:03:12]} Bxf2+ {[%emt 0:05:30]} 13. Bxf2 {[%emt 0:02:13]} Nxf2 {[%emt 0:00:06]} 14. Rf1 {[%emt 0:01:25]} Qb6 {[%emt 0:00:50]} 15. Qh4 {[%emt 0:00:23]} Qxb5 {[%emt 0:00:43]} 16. Rxf2 {[%emt 0:00:02]} Rxf2 {[%emt 0:00:13]} 17. Qxf2 {[%emt 0:00:06]} Qxb2 {[%emt 0:05:17]} 0-1